Cogmind - Beta 16.1 @@@ ROGUE MODE // 2026.02.10 @ 09:47:10 Player: J1ang-5h1 Result: Destroyed self with Grenade Launcher Performance ------------- Evolutions (0) 0 Regions Visited (2) 400 Robots Destroyed (8) 40 Value Destroyed (154) 154 Prototype IDs (2) 40 Alien Tech Used (0) 0 Bonus (0) 0 TOTAL SCORE: 634 Bonus ------- None Cogmind --------- Core Integrity 0/250 Matter 235/300 Energy 70/100 System Corruption 0% Temperature Cool (0) Movement Walking (190) Ox1 Location -10/Mines Parts ------- > --- POWER (1) -------- (None) > --- PROPULSION (2) --- Aluminum Leg > --- UTILITY (2) ------ Improved Heat Sink Small Storage Unit > --- WEAPON (2) ------- Beam Cannon Grenade Launcher > --- INVENTORY (8) ---- Compact Wheel Compact Wheel High-capacity Matter Pod (200) Sensor Array Mining Laser Peak State ------------ > --- POWER ------------ (None) > --- PROPULSION ------- Aluminum Leg Aluminum Leg > --- UTILITY ---------- Improved Heat Sink Small Storage Unit > --- WEAPON ----------- EM Pulse Gun Small Laser > --- INVENTORY -------- Aluminum Leg Aluminum Leg Compact Wheel Grenade Launcher Mining Laser [Rating: 8] Favorites ----------- Power Light Ion Engine Engine Light Ion Engine Propulsion Aluminum Leg Leg Aluminum Leg Utility Small Storage Unit Device Improved Heat Sink Storage Small Storage Unit Weapon Mining Laser Energy Gun Small Laser Energy Cannon Beam Cannon Ballistic Gun Light Assault Rifle Launcher Grenade Launcher Special Weapon Mining Laser Build | -11 -10 -10 ------- Run | Yrd Mat Min Slots Evolved . | . . . Power . | . . . Propulsion . | . . . Utility . | . . . Weapon . | . . . Parts Attached 14 | 7 3 4 Power 1 | 1 . . Engine 1 | 1 . . Core . | . . . Reactor . | . . . Propulsion 4 | 2 1 1 Treads . | . . . Leg 4 | 2 1 1 Wheel . | . . . Hover . | . . . Flight . | . . . Utility 3 | 2 1 . Device 2 | 1 1 . Storage 1 | 1 . . Processor . | . . . Hackware . | . . . Protection . | . . . Artifact . | . . . Weapon 6 | 2 1 3 Energy Gun 2 | 1 1 . Energy Cannon 1 | . . 1 Ballistic Gun 1 | 1 . . Ballistic Cannon . | . . . Launcher 1 | . . 1 Special Weapon 1 | . . 1 Impact Weapon . | . . . Slashing Weapon . | . . . Piercing Weapon . | . . . Special Melee Weapon . | . . . Unidentified Prototypes . | . . . Parts Lost 8 | . 7 1 Power 1 | . 1 . Propulsion 3 | . 2 1 Utility 1 | . 1 . Weapon 3 | . 3 . Highest Loss Streak 3 | . 3 1 To Critical Strikes . | . . . Average Backups 4 | 2 4 4 Power . | . . . Propulsion 1 | 1 1 1 Utility . | . . 1 Weapon 1 | 1 2 1 Tool/Special . | . . . Unused Backups 4 | . . 4 Power . | . . . Propulsion 2 | . . 2 Utility 2 | . . 2 Weapon . | . . . Tool/Special . | . . . Average Slot Usage (%) 81 | . 86 77 Engine 2 | . 6 . Leg 27 | . 27 26 Device 13 | . 12 14 Storage 14 | . 14 14 Energy Gun 6 | . 16 . Energy Cannon 5 | . . 8 Ballistic Gun 3 | . 8 . Special Weapon 7 | . . 12 Peak Build Rating 8 | 7 8 8 Average Rating 6 | 4 6 7 On Entrance 4 | . 7 5 Avg Prop Armor Cover (%) . | . . . Naked Turns . | . . . Heaviest Build 11 | 11 11 10 Greatest Support 20 | 20 20 20 Greatest Overweight (x) 2 | 2 . . Average Overweight (x) . | . . . Largest Inventory Capacity 8 | 8 8 8 Average Capacity 7 | 7 8 8 Most Carried 7 | 4 7 6 Average Carried 4 | 2 4 4 Final Capacity 8 | 8 8 8 Final Carried 5 | 3 4 5 Class Distribution -------------------- 100% | Mutant Dominant Class ---------------- Mutant | -10/Materials Mutant | -10/Mines Resources | -11 -10 -10 ----------- Run | Yrd Mat Min Matter Collected 331 | 279 22 30 Remotely . | . . . Salvage Created 391 | 70 130 191 Parts 17 | 4 8 5 Haulers Intercepted . | . . . Recyclers Shooed 1 | . . 1 Parts Field Recycled . | . . . Retrieved Matter . | . . . Parts Self-Destructed . | . . . Prevented . | . . . Parts Restored . | . . . Kills | -11 -10 -10 ------- Run | Yrd Mat Min Combat Hostiles Destroyed 10 | . 3 7 Guns 3 | . 3 . AOE 7 | . . 7 Classes Destroyed 5 | 2 1 2 Worker 1 | . . 1 Tunneler 1 | 1 . . Recycler 3 | 1 . 2 Grunt 3 | . 3 . Assembled 7 | . . 7 Best Kill Streak 9 | 1 1 9 Combat Bots Only 7 | . 1 7 Max Kills in Single Turn 4 | 1 1 4 Gunslinging . | . . . Exploded 4 | . . 4 Melee . | . . . Uniques/NPCs Destroyed . | . . . Combat | -11 -10 -10 -------- Run | Yrd Mat Min Hostile Shots Fired 100 | . 83 17 Missed 24 | . 20 4 Hits 76 | . 63 13 Projectile 76 | . 63 13 Critical Strikes 1 | . 1 . Damage Taken 1043 | . 778 265 Core 255 | . 164 91 Absorbed by Shields . | . . . Core Remaining (%) 100 | 100 . . Volleys Fired 52 | 9 25 18 Largest 2 | 2 2 2 Hottest 160 | 60 80 160 Shots Fired 86 | 18 49 19 Gun 67 | 18 49 . Cannon 11 | . . 11 Launcher 6 | . . 6 Special 2 | . . 2 Kinetic 26 | 9 17 . Thermal 47 | 9 25 13 Explosive 6 | . . 6 Electromagnetic 7 | . 7 . Robot Hit Streak 7 | 5 7 4 Robot Miss Streak 4 | 2 4 3 Penetration Max . | . . . Secondary Targets . | . . . Shots Hit Robots 55 | 12 32 11 Core Hits 34 | 3 11 20 Critical Kills . | . . . Critical Parts Destroyed . | . . . Critical Strikes . | . . . Melee Attacks . | . . . Impact . | . . . Slashing . | . . . Piercing . | . . . Sneak Attacks . | . . . Combat Hostiles . | . . . Follow-up Attacks . | . . . Damage Inflicted 1093 | 116 325 652 Guns 441 | 116 325 . Cannons 124 | . . 124 Explosions 528 | . . 528 Melee . | . . . Ramming . | . . . Kinetic 156 | 57 99 . Thermal 357 | 59 174 124 Explosive 528 | . . 528 Electromagnetic 52 | . 52 . Impact . | . . . Slashing . | . . . Piercing . | . . . Highest Corruption . | . . . Average Corruption . | . . . Corruption Purged . | . . . Corruption Blocked . | . . . Overload Shots . | . . . Overflow Damage 3 | . . 3 Projectiles . | . . . Explosions 3 | . . 3 Melee . | . . . Knockbacks . | . . . Impact . | . . . Kinetic . | . . . Secondary . | . . . Self-Inflicted Damage 83 | . . 83 Shots 3 | . . 3 Rammed . | . . . Targets Rammed . | . . . Kicked . | . . . Crushed . | . . . Highest Temperature 132 | 40 132 . Average Temperature 42 | 18 49 . Received Heat Transfer 456 | . 456 . Siege Activations . | . . . Martial Activations . | . . . Shielding Activations . | . . . Robots Disrupted . | . . . Combat Hostiles . | . . . Robots Corrupted . | . . . Combat Hostiles . | . . . Parts Fried . | . . . Impact Corruptions . | . . . Robots Melted . | . . . Combat Hostiles . | . . . Parts Melted 1 | . . 1 Heat Transferred 784 | 125 400 259 Parts Sabotaged . | . . . Parts Stolen . | . . . Parts Stripped . | . . . Power Chain Reactions . | . . . Alert | -11 -10 -10 ------- Run | Yrd Mat Min Maximum Alert Level . | . . . Low Security (%) 100 | 100 100 100 Level 1 . | . . . Level 2 . | . . . Level 3 . | . . . Level 4 . | . . . Level 5 . | . . . High Security . | . . . Max Security . | . . . Peak Influence 30 | 5 30 24 Initial 5 | . . 5 Average 4 | 1 11 1 Influence Increases 226 | 10 172 44 Destroy 0b10 Robot/C 60 | . 60 . Destroy 0b10 Robot/NC 25 | 10 . 15 Destroy Leader 20 | . 20 . Successful Hack 17 | . 17 . Destroy Structure 29 | . . 29 Lose Combat Pursuer 75 | . 75 . Influence Decreases 207 | 10 157 40 Entered New Map 10 | . . 10 Time Decay 117 | 10 87 20 Lost Part 80 | . 70 10 Squads Dispatched 1 | . 1 . Investigation . | . . . Extermination . | . . . Reinforcement 1 | . 1 . Assault . | . . . Garrison . | . . . Intercept . | . . . Searches Triggered . | . . . Construction Impeded . | . . . Haulers Reinforced . | . . . Active Scanning Responses . | . . . Cargo Convoy Interrupts . | . . . Stealth | -11 -10 -10 --------- Run | Yrd Mat Min Distress Signals . | . . . Communications Jammed . | . . . Distress Signals . | . . . Times Spotted 29 | . 19 10 Peak Tracking Total 18 | . 8 18 Tactical Retreats 3 | . 3 . Traps | -11 -10 -10 ------- Run | Yrd Mat Min Traps Triggered . | . . . Indirectly . | . . . Trap Hack Attempts . | . . . Triggered . | . . . Disarmed . | . . . Reprogrammed . | . . . Reused . | . . . Traps Extracted . | . . . Installed . | . . . Triggered . | . . . Machines | -11 -10 -10 ---------- Run | Yrd Mat Min Machines Disabled . | . . . Max in Single Turn . | . . . Machines Repaired . | . . . Machines Dismantled . | . . . Machines Sabotaged . | . . . Overloaded Fab Kills . | . . . Hacking | -11 -10 -10 --------- Run | Yrd Mat Min Machines Accessed 3 | . 3 . Terminals 3 | . 3 . Fabricators . | . . . Repair Stations . | . . . Recycling Units . | . . . Scanalyzers . | . . . Garrison Access . | . . . Total Hacks 12 | . 12 . Successful 9 | . 9 . Failed 3 | . 3 . Catastrophic 1 | . 1 . Database Lockouts . | . . . Manual 8 | . 8 . Terminals 12 | . 12 . Fabricators . | . . . Repair Stations . | . . . Recycling Units . | . . . Scanalyzers . | . . . Garrison Access . | . . . Terminal Hacks 4 | . 4 . Prototype ID Bank 1 | . 1 . Locate Traps 1 | . 1 . Hauler Manifests 1 | . 1 . Zone Layout 1 | . 1 . Fabricator Hacks . | . . . Repair Station Hacks . | . . . Recycling Unit Hacks . | . . . Scanalyzer . | . . . Garrison Access Hacks . | . . . Unauthorized Hacks 5 | . 5 . Terminals 5 | . 5 . Botnet 2 | . 2 . Skim 3 | . 3 . Fabricators . | . . . Repair Stations . | . . . Recycling Units . | . . . Scanalyzers . | . . . Garrison Access . | . . . Data Cores Recovered . | . . . Used . | . . . Hacking Detections 3 | . 3 . Full Trace Events . | . . . Feedback Events . | . . . Feedback Blocked . | . . . Robot Schematics Acquired . | . . . Robots Built . | . . . Authchips . | . . . Time . | . . . Total Robot Build Rating . | . . . Part Schematics Acquired . | . . . Parts Built . | . . . Authchips . | . . . Time . | . . . Total Part Build Rating . | . . . Part Studies Acquired . | . . . Parts Repaired . | . . . Time . | . . . Parts Recycled . | . . . Recycled Matter . | . . . Retrieved Matter . | . . . Retrieved Components . | . . . Parts Scanalyzed . | . . . Part Schematics Acquired . | . . . Parts Damaged . | . . . Bothacking | -11 -10 -10 ------------ Run | Yrd Mat Min Used RIF Installer . | . . . Robots Hacked . | . . . Non-combat . | . . . Combat . | . . . Robot Hacks Applied . | . . . Relay Couplers Released . | . . . Fabnet Peak Effective % . | . . . Robots Rewired . | . . . Allies Hacked . | . . . Hacks Repelled . | . . . Allies | -11 -10 -10 -------- Run | Yrd Mat Min Total Allies . | . . . Largest Group . | . . . Highest-Rated Group . | . . . Highest-Rated Ally . | . . . Total Orders . | . . . Ally Attacks . | . . . Total Damage . | . . . Kills . | . . . Allies Corrupted . | . . . Allies Melted . | . . . Intel | -11 -10 -10 ------- Run | Yrd Mat Min Active Infowar (turns) 135 | 12 123 . Seismic 135 | 12 123 . Robot Analysis Total . | . . . Derelict Logs Recovered 1 | . . 1 Drone Launches . | . . . Drone Recoveries . | . . . Exploration | -11 -10 -10 ------------- Run | Yrd Mat Min Turns Passed 661 | 95 231 335 Spaces Moved 411 | 44 128 239 Core 11 | 11 . . Treads . | . . . Legs 400 | 33 128 239 Wheels . | . . . Hover . | . . . Flight . | . . . Fastest Speed 50 | 50 120 120 Average Speed 120 | 120 120 120 Slowest Speed 150 | 150 120 120 Overloaded Moves . | . . . Propulsion Burnouts . | . . . Robots Hopped . | . . . Potential Cave-ins . | . . . Cave-ins Triggered . | . . . Exploration Rate (%) 28 | 3 39 43 Regions Visited 2 Branch Regions 1 Pre-discovered Areas 1 | . . 1 Known Exits Taken . | . . . Unknown Exits Taken 2 | 1 1 . Scrap Searched 1 | . . 1 Spaces Dug . | . . . Terrain Destroyed 41 | . . 41 Melee . | . . . Projectile . | . . . AOE 41 | . . 41 Terrain Rammed . | . . . Walls Destroyed . | . . . Machines Disabled . | . . . Actions | -11 -10 -10 --------- Run | Yrd Mat Min Total 494 | 69 160 265 Wait 1 | . 1 . Move 409 | 43 127 239 Hop . | . . . Pick Up 18 | 10 4 4 Fast Attach . | . . . Attach 13 | 7 3 3 Detach . | . . . Swap 1 | . . 1 Drop . | . . . Fire 52 | 9 25 18 Melee . | . . . Ram . | . . . Kick . | . . . Crush . | . . . Escape Stasis . | . . . Rewire . | . . . Trap . | . . . Miscellaneous . | . . . Route ------- -11/Scrapyard -10/Materials -10/Mines (discovered 1 exit: [*Mat]) History --------- Turn | Location | Event 27 | -11/Scrapyard | Discovered new exit (range 15) 96 | -11/Scrapyard | Entered Materials 167 | -10/Materials | Discovered new exit (range 8) 255 | -10/Materials | Lost 3 parts (1p1u1w) 269 | -10/Materials | Core integrity fell below 50% 304 | -10/Materials | Build established: Mutant 327 | -10/Materials | Entered Mines 327 | -10/Mines | Discovered new exit (range 13) 416 | -10/Mines | Learned location of Zion (-7) 640 | -10/Mines | Assembled infested the area 655 | -10/Mines | Core integrity fell below 20% 662 | -10/Mines | Destroyed self with Grenade Launcher Last Messages --------------- 00446_ Acquired Beam Cannon. 00448_ Acquired 10 matter. 00555_ Tractor Beam melted. 00555_ R-06 Scavenger destroyed. 00632_ K-01 Serf destroyed. 00636_ R-06 Scavenger destroyed. 00640_ ALERT: Infestation in the mines, dispatching Demolisher response squad. 00654_ as-05357 destroyed. 00654_ as-24491 destroyed. 00654_ as-53483 destroyed. 00655_ The unstable cave ceiling collapses. 00655_ as-92711 sneak attacks. 00655_ K-01 Serf destroyed. 00656_ as-74993 destroyed. 00656_ as-92711 destroyed. 00660_ Aluminum Leg destroyed. 00660_ Destroyed Aluminum Leg. 00661_ The unstable cave ceiling collapses. 00662_ as-98312 destroyed. Map ----- +----------------------------------------------------+ | ### ############### #??### """ #??## | | ??# #????## #### | | ??## ###### ############?????# ### ## | | ???#####????# #????????????????# #??# | | ????????????# #????????????????## ##??## # | | ????????????# #?????????????????# #????# ###### | | ???????????? ?????????????????# #?#### ##????? | | ???????????? ?????????????????# ### ##????? | | ????????????"" ?????????????????# ##???? | | ????????????"" ?????????????????# % """ #???? | | ????????????"" ?????????????????##### """ #???? | | ???????????? ?????????????????????# """ ##???? | | ??????????????#?????????????????????# ##????? | | ????????????????????????????????????# ##?????? | | ??????????????????????????####??????# ##??????? | | ?????????????????????????## #####?# ##??????? | | ???????????????????????### ### ##?????? | | ????????????????######## ### ##????? | | ????????????????? = #?## #????? | | ???????????? ???? %= #??## #????? | | ???????????? a| ???# ???# ###### #????? | | ??????????? ?# ???# #????? | | ??????????? # #??## ##???? | | ?????????? #??# ####### ##??? | | ?????????? % #### #????## ##?? | | ?????????? * @ #?????## ##? | | ?????????? a % ##### #??????### ## | | ?????????? ?????## #????????# # | | ??????????? ######## # ???????# #???????## | | ????????????????????### ???????# ##??????# | | ??????????????????????#????????# ##?????# # | | ???????????????????????????????## !%##????## ## | | ????????????????????????????????# #?????#####? | | ????????????????????????????????## #??????????? | | ?????????????????????????????????## #??????????? | | ??????????????????????????????????## ##?????????? | | ??????????????????????????????????## ###?#####?? | | ??????????????????????????????????# ### ##? | | ??????????????????????????????????# #? | | ??????????????????????????????????## #? | | ???????????????????????????????????## ## | | ????????????????????????????????????## # | | ?????????????????????????????????????## """ | | ??????????????????????????????????????# """ | | ?????????????????????????????????????# """ | | ?????????????????????????????????????# # | | ?????????????????????????????????????## #### | | ??????????????????????????????????????## # | | ???????????????????????????????????????### # """ | | ?????????????????????????????????????????# # """ | +----------------------------------------------------+ Best States ------------- Heat Dissipation 39 Energy Generation 10 Energy Capacity 125 Matter Stores 300 Matter Capacity 300 Sight Range 16 Terrain Scan Density 10 Evasion (%) 55 Item Schematics ----------------- None Robot Schematics ------------------ None Fabricated ------------ Nothing Repaired ---------- Nothing Studied --------- None Alien Tech Used ----------------- None Achievements -------------- None Challenges ------------ None Game ------ Seed MultinovaZioniteReplicator Manual? 0 Play Time 00:09:45 Cumulative 395.1 hours Start 2026.02.10 @ 09:39:40 End 2026.02.10 @ 09:47:10 Sessions 1 Manual Loads 0 Difficulty Rogue Special Mode None Game No. 284 Rogue 274 Adventurer 0 Explorer 10 Win Type - Total 5 Types 5/0/0/0/0/0/0/0/0/0 Lore% 81 Gallery% 66 Achievement% 43 Wizard Run 0 Options --------- Layout 2 ASCII 0 Keyboard 0 Movement Mouse Keybinds 1 Fullscreen 1 Font 24/Smallcaps Map View 50x44 Zoom Use 0% Tactical HUD 1 Map Filters NONE Filters NONE Steam 1 RUN: ee26260a-597f-4b50-b56f-37d4c9b43ad2